bitfinex-derivatives/quotes_SOLF0:USTF0_20250623
["timestamp","ask_amount","ask_price","bid_price","bid_amount"]
[1750682076612,5.25766438,134.28,134.23,5.25766438]
[1750682077117,5.25766438,134.28,134.24,7.447]
[1750682077311,7.4465,134.26,134.21,39.5629]
[1750682077517,7.4465,134.26,134.22,5.25766438]
[1750682077711,7.4465,134.26,134.24,7.4472]
[1750682078217,7.4459,134.27,134.25,7.4465]
[1750682079220,7.4459,134.27,134.24,7.4469]
[1750682079522,7.4461,134.26,134.24,7.4469]
[1750682079915,7.4458,134.27,134.25,7.4465]
[1750682081616,7.4453,134.28,134.26,7.4461]
[1750682081817,7.1511,134.29,134.24,5.25766438]
[1750682082420,7.4458,134.27,134.25,7.4463]
[1750682083621,7.4452,134.28,134.26,7.4461]
[1750682084319,7.4455,134.27,134.25,7.4463]
[1750682084623,7.1511,134.29,134.24,5.25766438]
[1750682085422,7.4456,134.27,134.25,7.4464]
[1750682085621,37.14,134.3,134.26,5.25766438]
[1750682086225,44.5841,134.3,134.28,7.4447]
[1750682086418,37.14,134.3,134.26,5.25766438]
[1750682087625,44.5842,134.3,134.28,7.4446]
[1750682088219,37.14,134.3,134.29,7.4444]
[1750682096419,9.92076438,134.33,134.29,7.4444]
[1750682096420,42.84833725,134.33,134.31,7.4433]
[1750682096826,50.29083725,134.33,134.31,7.4433]
[1750682097328,44.7625,134.33,134.31,7.4433]
[1750682097528,37.32,134.33,134.32,7.4428]
[1750682099028,5.52862137,134.34,134.33,7.4422]
[1750682099230,5.52862137,134.35,134.31,5.25766438]
[1750682099431,8.37078487,134.35,134.31,5.25766438]
[1750682099628,12.97002137,134.35,134.31,5.25766438]
[1750682099827,15.81218487,134.35,134.31,5.25766438]
[1750682100030,12.97002137,134.35,134.31,5.25766438]
[1750682100529,5.52862137,134.35,134.31,5.25766438]
[1750682100736,2.84270238,134.35,134.31,5.25766438]
[1750682101233,7.4419,134.34,134.32,7.4425]
[1750682101730,12.97587619,134.35,134.33,7.4422]
[1750682102126,12.97841497,134.35,134.33,7.4422]
[1750682102326,12.97841497,134.35,134.32,7.4425]
[1750682102327,7.4421,134.34,134.32,7.4425]
[1750682103030,12.97844008,134.35,134.33,7.442]
[1750682103534,12.9747957,134.35,134.33,7.442]
[1750682103729,5.5333957,134.35,134.34,7.4417]
[1750682103931,5.5333957,134.35,134.33,5.25766438]
[1750682104331,44.7607,134.36,134.34,7.4417]
[1750682104735,42.0484,134.39,134.33,5.25766438]
[1750682104932,8.38842425,134.38,134.36,7.4404]
[1750682105232,2.85146823,134.38,134.36,7.4404]
[1750682105632,5.53666692,134.38,134.37,7.44]
[1750682105835,5.53666692,134.38,134.35,5.25766438]
[1750682106037,8.38813515,134.38,134.36,7.44]
[1750682106336,8.38813515,134.38,134.35,5.25766438]
[1750682106632,8.38733843,134.38,134.35,5.25766438]
[1750682106933,8.38733843,134.38,134.36,7.4405]
[1750682107334,7.4395,134.38,134.36,7.4405]
[1750682107538,39.7096,134.39,134.37,7.4399]
[1750682107733,55.52775365,134.39,134.37,7.4399]
[1750682108040,47.1487,134.39,134.35,5.25766438]
[1750682108336,47.1487,134.39,134.36,7.44]
[1750682108526,52.67789509,134.39,134.36,7.44]
[1750682108728,7.4395,134.38,134.36,7.44]
[1750682108931,39.7096,134.39,134.35,12.69846438]
[1750682109135,7.4398,134.38,134.35,5.25766438]
[1750682109327,39.7096,134.39,134.35,5.25766438]
[1750682109529,45.24200885,134.39,134.35,5.25766438]
[1750682109732,48.09116067,134.39,134.35,5.25766438]
[1750682109939,7.44,134.37,134.35,5.25766438]
[1750682110140,39.7096,134.39,134.35,5.25766438]
[1750682110334,39.7096,134.39,134.33,5.25766438]
[1750682110637,48.08468095,134.39,134.33,5.25766438]
[1750682111140,7.4404,134.37,134.34,7.4412]
[1750682111341,39.7096,134.39,134.34,7.4412]
[1750682111739,48.08467995,134.39,134.34,7.4412]
[1750682111942,5.25766438,134.38,134.33,5.25766438]
[1750682112235,13.63274433,134.38,134.33,5.25766438]
[1750682112638,7.4413,134.35,134.33,12.69956438]
[1750682113239,13.63274433,134.38,134.33,5.25766438]
[1750682113642,13.63325469,134.38,134.33,5.25766438]
[1750682113843,7.4416,134.35,134.33,5.25766438]
[1750682114145,13.63325469,134.38,134.33,5.25766438]
[1750682114344,13.63325469,134.38,134.31,5.25766438]
[1750682114345,7.4413,134.35,134.31,5.25766438]
[1750682114546,8.37559031,134.38,134.33,5.25766438]
[1750682114749,8.37559031,134.38,134.34,7.4412]
[1750682115246,5.52813113,134.38,134.34,12.69886438]
[1750682115445,7.4404,134.37,134.34,12.69886438]
[1750682115645,7.4404,134.37,134.35,7.4408]
[1750682116747,7.4396,134.38,134.36,7.4405]
[1750682118050,5.5003023,134.4,134.36,5.25766438]
[1750682118346,45.08953384,134.41,134.36,5.25766438]
[1750682119050,39.5898,134.41,134.36,5.25766438]
[1750682119249,7.4387,134.4,134.37,7.4396]
[1750682119543,7.4387,134.4,134.36,5.25766438]
[1750682120144,7.4387,134.4,134.38,7.4392]
[1750682121250,7.4387,134.4,134.37,7.4397]
[1750682121448,7.439,134.39,134.37,7.4397]
[1750682121849,39.5898,134.41,134.36,12.69796438]
[1750682122151,7.4393,134.39,134.36,12.69796438]
[1750682122341,45.08527715,134.41,134.36,12.69796438]
[1750682122841,50.34294153,134.41,134.36,5.25766438]
[1750682123051,50.34294153,134.41,134.34,5.25766438]
[1750682123449,50.34294153,134.41,134.35,7.441]
[1750682123752,50.34294153,134.41,134.33,39.7657]
[1750682123957,5.25766438,134.39,134.33,5.25766438]
[1750682124353,7.441,134.36,134.33,5.25766438]
[1750682124955,37.3,134.37,134.33,5.25766438]
[1750682125156,37.3,134.37,134.35,5.25766438]
[1750682125455,37.3,134.4,134.36,7.4403]
[1750682126557,7.4393,134.39,134.37,7.44]
[1750682129257,42.55766438,134.4,134.32,2.367]
[1750682129456,42.55766438,134.4,134.31,6.93362754]
[1750682129457,50.89646784,134.4,134.34,5.25766438]
[1750682129655,48.06117396,134.4,134.34,5.25766438]
[1750682129856,7.4403,134.37,134.34,5.25766438]
[1750682130660,7.4406,134.36,134.34,5.25766438]
[1750682131167,7.4406,134.36,134.34,12.69906438]
[1750682131868,7.4403,134.37,134.35,7.4411]
[1750682137558,7.4397,134.38,134.36,7.4405]
[1750682138169,8.34794311,134.39,134.33,5.23252548]
[1750682138370,5.50389579,134.39,134.33,5.23252548]
[1750682138673,7.4391,134.39,134.37,7.44]
[1750682139167,12.95373139,134.39,134.37,7.44]
[1750682139375,44.7386,134.4,134.38,7.4394]
[1750682139684,5.51911134,134.39,134.35,5.23252548]
[1750682140376,7.4392,134.39,134.37,7.44]
[1750682140568,12.9572507,134.39,134.37,7.44]
[1750682140767,7.4397,134.38,134.36,7.4404]
[1750682140963,5.51795086,134.39,134.33,12.16615302]
[1750682141163,5.22893097,134.39,134.33,12.16615302]
[1750682141370,8.37076977,134.38,134.33,12.16615302]
[1750682141573,2.84463097,134.38,134.33,12.16615302]
[1750682141772,5.52613863,134.37,134.33,6.93362754]
[1750682141969,7.66212548,134.38,134.33,6.93362754]
[1750682142165,7.4409,134.36,134.34,7.4414]
[1750682142371,2.4296,134.38,134.33,6.93362754]
[1750682142674,42.53252548,134.4,134.3,39.691]
[1750682142675,37.3,134.4,134.34,12.16615302]
[1750682142865,8.37764879,134.39,134.34,12.16615302]
[1750682143068,2.8520219,134.39,134.34,12.16615302]
[1750682143564,10.2912219,134.39,134.37,7.4397]
[1750682143763,10.29112906,134.39,134.37,7.4397]
[1750682143968,10.29079237,134.39,134.37,7.4397]
[1750682144176,10.29189485,134.39,134.37,7.4397]
[1750682146067,10.29187525,134.39,134.37,7.4397]
[1750682148078,7.4392,134.39,134.37,7.4397]
[1750682148274,7.4395,134.38,134.36,7.4402]
[1750682148780,10.29058345,134.38,134.36,7.4402]
[1750682148977,7.4395,134.38,134.36,7.4402]
[1750682149176,10.29169042,134.38,134.36,7.4402]
[1750682149378,7.4395,134.38,134.36,7.4402]
[1750682149674,7.4395,134.38,134.35,12.67161656]
[1750682150781,10.29169035,134.38,134.35,12.67161656]
[1750682150980,7.4395,134.38,134.35,12.67161656]
[1750682151178,2.85219035,134.39,134.35,12.67161656]
[1750682151179,37.3,134.4,134.36,7.4402]
[1750682151375,8.37604162,134.39,134.36,7.4402]
[1750682151579,5.5237147,134.38,134.36,7.4402]
[1750682151777,7.4395,134.38,134.36,7.4402]
[1750682154280,15.81315327,134.39,134.36,7.4402]
[1750682154478,10.29010328,134.39,134.36,7.4402]
[1750682154980,7.4395,134.38,134.36,7.4402]
[1750682155382,37.3,134.4,134.35,12.67161656]
[1750682155583,7.44,134.37,134.35,12.67161656]
[1750682157281,7.4398,134.38,134.36,7.4405]
[1750682157880,7.44,134.37,134.35,12.67161656]
[1750682158184,8.37493094,134.39,134.35,5.23081656]
[1750682158380,5.5229822,134.38,134.37,7.44]
[1750682158686,5.5229822,134.38,134.35,5.23081656]
[1750682158883,37.3,134.4,134.35,5.23081656]
[1750682159082,8.37771365,134.39,134.35,5.23081656]
[1750682159379,8.37771365,134.38,134.35,5.23081656]
[1750682159577,42.77736885,134.4,134.35,5.23081656]
[1750682159781,7.4397,134.38,134.36,7.4405]
[1750682160178,7.4394,134.38,134.36,7.4402]
[1750682160385,37.3,134.4,134.35,5.23081656]
[1750682160588,8.37768455,134.39,134.35,5.23081656]
[1750682160885,8.37768455,134.38,134.37,7.44]
[1750682161485,7.4391,134.39,134.36,7.4402]
[1750682161889,5.5247043,134.38,134.36,7.4402]
[1750682162088,7.4391,134.39,134.36,7.4402]
[1750682162285,5.52470479,134.38,134.37,7.44]
[1750682163088,12.96420479,134.38,134.36,7.4402]
[1750682163281,7.4395,134.38,134.36,7.4402]
[1750682164078,10.29079412,134.39,134.36,7.4402]
[1750682164283,37.3,134.4,134.35,12.16869946]
[1750682164478,8.37440505,134.39,134.35,12.16869946]
[1750682164687,37.3,134.4,134.35,12.16869946]
[1750682164882,8.37432704,134.39,134.35,12.16869946]
[1750682165086,37.3,134.4,134.35,12.16869946]
[1750682165287,8.37392848,134.39,134.35,12.16869946]
[1750682165487,7.4394,134.38,134.36,7.4403]
[1750682166997,7.4394,134.38,134.35,12.67161656]
[1750682167384,42.77698321,134.4,134.35,5.23081656]
[1750682167580,8.37533943,134.39,134.35,5.23081656]
[1750682167786,7.4405,134.36,134.34,6.9378829]
[1750682167988,5.52275238,134.37,134.35,7.4409]
[1750682168183,2.85290788,134.38,134.34,6.9378829]
[1750682168390,5.52314173,134.37,134.35,5.23081656]
[1750682168588,8.37510819,134.39,134.35,12.16869946]
[1750682168791,7.4392,134.39,134.35,12.16869946]
[1750682169196,37.3,134.4,134.37,7.4398]
[1750682169393,8.37542465,134.39,134.37,7.4398]
[1750682169690,37.3,134.4,134.36,12.16812081]
[1750682169990,37.3,134.4,134.38,12.66963791]
[1750682170189,37.3,134.4,134.38,5.23023791]
[1750682170491,37.3,134.4,134.39,7.4389]
[1750682170688,45.67603312,134.4,134.39,7.4389]
[1750682171394,42.82320933,134.4,134.39,7.4389]
[1750682172294,37.3,134.4,134.39,7.4389]
[1750682172496,42.82080971,134.4,134.39,7.4389]
[1750682173494,37.3,134.4,134.39,12.6683299]
[1750682174497,2.85104051,134.42,134.39,5.2294299]
[1750682174789,47.0237,134.43,134.39,5.2294299]
[1750682174994,8.37406225,134.42,134.39,5.2294299]
[1750682175195,47.0237,134.43,134.41,7.4373]
[1750682175389,8.37022701,134.42,134.41,7.4373]
[1750682176089,5.5203785,134.42,134.41,7.4373]
[1750682176293,37.16,134.43,134.42,7.4372]
[1750682176496,45.52928809,134.43,134.42,7.4372]
[1750682176690,42.67975911,134.43,134.42,7.4372]
[1750682176899,42.67975911,134.43,134.41,12.6669299]
[1750682177095,37.16,134.43,134.41,12.6669299]
[1750682177394,44.5967,134.43,134.41,12.6669299]
[1750682177893,50.11424192,134.43,134.41,12.6669299]
[1750682178195,44.5967,134.43,134.41,12.6669299]
[1750682178394,37.16,134.43,134.41,12.6669299]
[1750682178695,42.68771645,134.43,134.42,7.4372]
[1750682179094,42.68771645,134.43,134.41,5.2294299]
[1750682180197,37.16,134.43,134.41,5.2294299]
[1750682180791,37.16,134.43,134.42,7.4372]
[1750682182396,37.16,134.43,134.42,12.6666299]
[1750682184098,5.52617298,134.44,134.42,12.6666299]
[1750682184287,7.4362,134.44,134.42,12.6666299]
[1750682184690,642.74,134.45,134.42,12.6666299]
[1750682184892,650.1758,134.45,134.43,7.4367]
[1750682185298,642.74,134.45,134.42,5.2294299]
[1750682185497,7.4361,134.44,134.42,12.6662299]
[1750682185796,642.74,134.45,134.42,5.2294299]
[1750682186700,650.1758,134.45,134.43,7.4367]
[1750682187601,7.4361,134.44,134.42,12.6663299]
[1750682187796,37.16,134.46,134.4,6.9378829]
[1750682188000,5.5219836,134.45,134.4,5.2294299]
[1750682188201,7.437,134.43,134.4,5.2294299]
[1750682188903,7.437,134.43,134.41,7.4377]
[1750682190603,151.1764,134.44,134.42,12.6666299]
[1750682191503,151.1764,134.44,134.42,7.4372]
[1750682191906,7.4367,134.43,134.41,12.6669299]
[1750682192106,45.5443375,134.46,134.41,5.2294299]
[1750682192998,45.54268115,134.46,134.41,5.2294299]
[1750682193500,42.67919326,134.46,134.43,5.2294299]
[1750682193702,37.16,134.46,134.43,5.2294299]
[1750682193904,44.595,134.46,134.44,7.4358]
[1750682194106,50.11419326,134.46,134.44,7.4358]
[1750682194309,44.595,134.46,134.44,7.4358]
[1750682194502,37.16,134.46,134.45,7.4356]
[1750682195606,37.16,134.46,134.43,5.2294299]
[1750682195607,37.16,134.46,134.44,7.4358]
[1750682195909,37.16,134.46,134.43,5.2294299]
[1750682196109,37.16,134.46,134.45,7.4356]
[1750682196298,7.4343,134.48,134.45,7.4356]
[1750682196499,8.3820029,134.5,134.46,7.4347]
[1750682196697,13.20221682,134.51,134.47,5.2294299]
[1750682196905,7.4337,134.49,134.47,5.2294299]
[1750682198009,7.4339,134.48,134.47,5.2294299]
[1750682199502,7.4339,134.48,134.45,7.4353]
[1750682199806,5.51221184,134.5,134.45,5.2294299]
[1750682200014,7.68086801,134.51,134.45,5.2294299]
[1750682200015,13.19307985,134.51,134.45,5.2294299]
[1750682200302,13.19307985,134.51,134.47,12.6636299]
[1750682200901,10.33321184,134.51,134.47,12.6636299]
[1750682201102,679.72,134.52,134.49,5.2294299]
[1750682201304,7.4326,134.51,134.49,5.2294299]
[1750682201602,679.72,134.52,134.49,5.2294299]
[1750682201908,7.4322,134.51,134.49,5.2294299]
[1750682202109,679.72,134.52,134.49,5.2294299]
[1750682202308,37.16,134.52,134.49,5.2294299]
[1750682202497,44.5922,134.52,134.49,12.6624299]
[1750682202699,44.5922,134.52,134.49,7.433]
[1750682202903,44.5922,134.52,134.5,5.2294299]
[1750682203300,7.4311,134.54,134.5,5.2294299]
[1750682203503,7.4311,134.54,134.47,7.6134299]
[1750682203704,37.16,134.55,134.51,5.2294299]
[1750682204104,7.4309,134.54,134.51,12.6612299]
[1750682204305,37.16,134.55,134.47,7.6134299]
[1750682204306,37.16,134.6,134.53,5.2294299]
[1750682204515,37.16,134.6,134.55,5.2294299]
[1750682204516,39.5063,134.6,134.55,5.2294299]
[1750682204810,53.28112904,134.6,134.55,5.2294299]
[1750682205002,152.34966544,134.59,134.53,5.2294299]
[1750682205201,2.85221446,134.59,134.57,5.2294299]
[1750682205600,37.16,134.62,134.57,5.2294299]
[1750682206405,42.3894299,134.62,134.56,5.2294299]
[1750682206807,7.4287,134.58,134.56,5.2294299]
[1750682207509,42.3894299,134.62,134.56,5.2294299]
[1750682207714,7.4281,134.59,134.56,12.6588299]
[1750682207914,42.3894299,134.62,134.56,5.2294299]
[1750682208215,7.4276,134.6,134.57,7.4289]
[1750682208513,6.95574891,134.68,134.58,42.3894299]
[1750682208720,7.7008299,134.77,134.67,5.2294299]
[1750682209014,2.4691,134.75,134.72,5.2294299]
[1750682209216,2.4691,134.75,134.73,5.2294299]
[1750682209417,2.4691,134.75,134.72,5.2294299]
[1750682209806,2.4691,134.75,134.72,12.6501299]
[1750682210011,2.4691,134.75,134.72,5.2294299]
[1750682210209,2.4691,134.75,134.67,4.5671]
[1750682210407,42.3694299,134.74,134.68,5.2294299]
[1750682210914,7.4207,134.72,134.68,5.2294299]
[1750682211110,42.3694299,134.74,134.66,5.2294299]
[1750682211314,42.3694299,134.74,134.68,5.2294299]
[1750682211715,7.4205,134.73,134.68,12.6521299]
[1750682211919,42.3694299,134.74,134.64,5.2294299]
[1750682211920,5.2294299,134.7,134.64,5.2294299]
[1750682212119,39.6039,134.69,134.64,5.2294299]
[1750682212313,39.6039,134.69,134.63,7.93809535]
[1750682213114,7.4232,134.68,134.64,7.4247]
[1750682215420,47.0264,134.69,134.65,7.4244]
[1750682215820,39.6039,134.69,134.65,7.4244]
[1750682217224,39.6039,134.69,134.64,7.4246]
[1750682218125,7.4231,134.68,134.64,7.4246]
[1750682218520,39.6039,134.69,134.65,7.4244]
[1750682218920,47.0264,134.69,134.65,7.4244]
[1750682219515,39.6039,134.69,134.66,7.4238]
[1750682219722,39.6039,134.69,134.63,7.93809535]
[1750682220222,37.14,134.69,134.65,7.93809535]
[1750682220422,37.12,134.72,134.67,7.93809535]
[1750682220620,44.541,134.72,134.69,7.422]
[1750682220820,44.541,134.72,134.64,37.12]
[1750682221022,44.541,134.72,134.66,7.93809535]
[1750682222025,37.12,134.72,134.7,7.4217]
[1750682224517,37.12,134.72,134.71,7.4212]
[1750682225730,686.6192,134.75,134.72,7.4203]
[1750682225918,679.2,134.75,134.7,7.93809535]
[1750682226119,679.2,134.75,134.65,7.1064]
[1750682226120,686.6195,134.75,134.65,7.1064]
[1750682226318,679.2,134.75,134.65,7.1064]
[1750682226517,679.2,134.75,134.67,7.93809535]
[1750682226824,679.2,134.75,134.68,7.4226]
[1750682227325,7.4215,134.71,134.68,7.4226]
[1750682227828,7.93809535,134.74,134.68,7.4226]
[1750682228221,2.4855,134.73,134.67,15.36129535]
[1750682228528,2.4855,134.73,134.67,7.4232]
[1750682229026,2.4855,134.73,134.68,7.4228]
[1750682229225,7.4216,134.71,134.68,7.4228]
[1750682229422,38.08,134.71,134.67,7.4231]
[1750682229621,45.5017,134.71,134.66,7.93809535]
[1750682229821,38.08,134.71,134.66,7.93809535]
[1750682230527,38.08,134.71,134.65,7.4242]
[1750682230723,2.3049,134.7,134.65,7.4242]
[1750682230923,7.423,134.68,134.65,7.4242]
[1750682231524,7.4234,134.67,134.65,7.4242]
[1750682232023,7.4234,134.67,134.64,15.36289535]
[1750682232428,10.24299535,134.7,134.62,45.99809535]
[1750682232823,7.4243,134.66,134.62,7.93809535]
[1750682233329,7.4243,134.66,134.63,7.4253]
[1750682233922,7.4243,134.66,134.62,7.93809535]
[1750682234224,7.4245,134.65,134.62,5.21021924]
[1750682234531,7.4245,134.65,134.63,7.4255]
[1750682234726,38.06,134.67,134.63,7.4255]
[1750682234727,7.4243,134.66,134.63,7.4255]
[1750682235430,7.4243,134.66,134.62,12.63611924]
[1750682236929,7.4242,134.66,134.62,12.63611924]
[1750682237230,38.06,134.67,134.62,12.63611924]
[1750682237429,7.4244,134.66,134.62,12.63611924]
[1750682237729,38.06,134.67,134.62,5.21021924]
[1750682238329,7.4251,134.64,134.61,7.4265]
[1750682238726,43.27021924,134.67,134.61,7.4265]
[1750682239031,45.4837,134.67,134.62,5.21021924]
[1750682239330,38.06,134.67,134.62,5.21021924]
[1750682239531,7.4242,134.66,134.63,7.4253]
[1750682241420,45.4836,134.67,134.64,7.425]
[1750682241625,38.06,134.67,134.62,5.21021924]
[1750682242227,7.424,134.66,134.63,7.4253]
[1750682242926,7.424,134.66,134.62,12.63591924]
[1750682243330,7.424,134.66,134.59,38.06]
[1750682243530,7.424,134.66,134.63,5.21021924]
[1750682244230,38.06,134.67,134.63,5.21021924]
[1750682244632,7.4244,134.66,134.63,5.21021924]
[1750682245335,7.4246,134.65,134.63,5.21021924]
[1750682246335,38.06,134.67,134.63,5.21021924]
[1750682246536,38.06,134.67,134.61,7.4263]
[1750682246835,38.06,134.67,134.62,5.21021924]
[1750682247137,7.4248,134.65,134.62,12.63631924]
[1750682247638,7.4251,134.64,134.62,5.21021924]
[1750682248232,7.4248,134.65,134.62,5.21021924]
[1750682248839,7.4248,134.65,134.62,12.63631924]
[1750682249634,7.4243,134.66,134.64,5.21021924]
[1750682250136,7.4245,134.65,134.64,5.21021924]
[1750682250338,7.4245,134.65,134.62,12.63611924]
[1750682251536,7.4242,134.66,134.63,7.4255]
[1750682253543,7.4248,134.65,134.62,12.63601924]
[1750682254237,7.4248,134.65,134.63,7.4255]
[1750682254434,7.4242,134.66,134.63,7.4255]
[1750682259149,2.3049,134.7,134.64,12.14810214]
[1750682259348,2.3049,134.7,134.67,5.21021924]
[1750682259545,37.64,134.71,134.68,7.4227]
[1750682259745,37.64,134.71,134.67,5.21021924]
[1750682260951,7.422,134.7,134.67,12.63321924]
[1750682261151,7.422,134.7,134.64,6.9378829]
[1750682261152,37.64,134.71,134.65,5.21021924]
[1750682261452,42.85021924,134.71,134.65,5.21021924]
[1750682261652,7.4231,134.68,134.65,12.63441924]
[1750682261844,7.4231,134.68,134.65,5.21021924]
[1750682262040,7.4237,134.67,134.65,5.21021924]
[1750682262446,42.85021924,134.71,134.65,5.21021924]
[1750682262643,7.4235,134.67,134.65,5.21021924]
[1750682262953,37.64,134.71,134.65,5.21021924]
[1750682263148,7.422,134.7,134.67,5.21021924]
[1750682263345,37.64,134.71,134.67,5.21021924]
[1750682263652,45.0614,134.71,134.68,7.4225]
[1750682264248,37.64,134.71,134.69,7.4222]
[1750682264842,37.64,134.71,134.67,5.21021924]
[1750682265249,45.0613,134.71,134.67,5.21021924]
[1750682265449,45.0613,134.71,134.68,7.4227]
[1750682265651,45.0613,134.71,134.67,5.21021924]
[1750682265951,2.3598,134.73,134.69,5.21021924]
[1750682266147,37.64,134.74,134.71,5.21021924]
[1750682266745,37.64,134.74,134.73,5.21021924]
[1750682267151,37.64,134.77,134.73,5.21021924]
[1750682267345,45.0582,134.77,134.73,5.21021924]
[1750682267651,37.64,134.77,134.75,12.62891924]
[1750682267857,37.64,134.77,134.71,6.9378829]
[1750682268053,37.64,134.77,134.75,5.21021924]
[1750682269054,37.64,134.77,134.75,12.62891924]
[1750682269649,45.058,134.77,134.75,5.21021924]
[1750682271058,37.64,134.77,134.73,5.21021924]
[1750682271651,37.62,134.8,134.75,5.21021924]
[1750682272353,37.62,134.8,134.7,39.9737]
[1750682272552,37.62,134.8,134.74,5.21021924]
[1750682272753,7.4182,134.77,134.74,12.62951924]
[1750682272958,37.62,134.8,134.74,5.21021924]
[1750682273358,7.4178,134.78,134.75,7.4189]
[1750682273559,37.62,134.8,134.74,5.21021924]
[1750682273956,37.62,134.8,134.7,39.9737]
[1750682274152,6.95574891,134.84,134.73,5.21021924]
[1750682274358,37.62,134.83,134.77,5.21021924]
[1750682274659,7.416,134.81,134.78,7.4173]
[1750682274858,7.416,134.81,134.77,5.21021924]
[1750682275060,7.416,134.81,134.78,7.417]
[1750682275860,5.21021924,134.81,134.74,37.62]
[1750682276158,5.21021924,134.79,134.73,5.21021924]
[1750682276365,7.4186,134.76,134.73,7.4199]
[1750682276557,7.4186,134.76,134.73,12.63011924]
[1750682276960,32.78534895,134.88,134.75,5.21021924]
[1750682277165,5.21021924,134.84,134.78,5.21021924]
[1750682277367,44.5006,134.85,134.78,5.21021924]
[1750682277563,7.4152,134.82,134.79,7.4165]
[1750682278161,44.5006,134.85,134.75,7.49971924]
[1750682278362,44.5006,134.85,134.8,5.21021924]
[1750682278761,7.415,134.83,134.8,5.21021924]
[1750682279365,7.4154,134.82,134.8,5.21021924]
[1750682279571,44.5006,134.85,134.8,5.21021924]
[1750682279973,7.4157,134.81,134.8,5.21021924]
[1750682280972,37.6,134.81,134.7,37.6]
[1750682281173,7.57731924,134.8,134.74,5.21021924]
[1750682281973,2.3671,134.8,134.7,37.6]
[1750682282172,2.3671,134.8,134.74,5.21021924]
[1750682282677,7.4185,134.76,134.74,5.21021924]
[1750682283074,2.3671,134.8,134.74,5.21021924]
[1750682283075,5.21021924,134.79,134.74,5.21021924]
[1750682283275,7.419,134.75,134.74,5.21021924]
[1750682284473,37.6,134.8,134.74,5.21021924]
[1750682284672,37.6,134.8,134.78,5.21021924]
[1750682284872,45.0165,134.8,134.78,5.21021924]
[1750682285279,37.6,134.8,134.78,5.21021924]
[1750682286079,37.6,134.8,134.75,2.3169]
[1750682286376,37.6,134.8,134.78,5.21021924]
[1750682286878,45.0165,134.8,134.78,12.62731924]
[1750682287077,37.6,134.8,134.78,12.62731924]
[1750682287976,37.6,134.8,134.79,7.4168]
[1750682288177,37.6,134.83,134.79,7.4168]
[1750682288881,7.4154,134.82,134.79,7.4168]
[1750682290882,7.4154,134.82,134.78,7.92037276]
[1750682290883,7.4154,134.82,134.8,7.4162]
[1750682291583,7.4154,134.82,134.79,7.4164]
[1750682292082,7.4154,134.82,134.78,7.92037276]
[1750682292773,37.6,134.83,134.8,7.4158]
[1750682293779,7.4152,134.82,134.8,7.4158]
[1750682297882,37.6,134.83,134.77,7.92037276]
[1750682298384,7.4159,134.81,134.78,7.4169]
[1750682298772,7.4159,134.81,134.79,7.4166]
[1750682298983,37.6,134.83,134.77,7.92037276]
[1750682299781,7.4155,134.82,134.79,7.4164]
[1750682299981,37.6,134.83,134.79,7.4164]
[1750682300182,37.6,134.83,134.77,7.92037276]
[1750682300382,7.4162,134.8,134.78,7.4169]
[1750682301084,7.4167,134.79,134.77,7.4176]
[1750682301283,37.6,134.83,134.76,7.92037276]
[1750682301883,7.4164,134.8,134.76,7.92037276]
[1750682303088,7.4164,134.8,134.77,7.4175]
[1750682304787,7.4164,134.8,134.78,7.4172]
[1750682304993,7.4164,134.8,134.76,7.92037276]
[1750682305489,45.52037276,134.83,134.76,7.92037276]
[1750682305879,7.4175,134.78,134.74,38.3]
[1750682306084,45.52037276,134.83,134.74,46.22037276]
[1750682306492,7.4175,134.78,134.74,7.92037276]
[1750682307286,7.4175,134.78,134.75,7.4188]
[1750682307489,7.4175,134.78,134.74,7.92037276]
[1750682308290,7.4175,134.78,134.75,5.20003624]
[1750682308890,7.4178,134.77,134.75,5.20003624]
[1750682309386,7.4178,134.77,134.75,12.61843624]
[1750682309692,7.4175,134.78,134.75,5.20003624]